bitfinex/quotes_ETHUSD_20241204
["timestamp","ask_amount","ask_price","bid_price","bid_amount"]
[1733290226622,1.85193387,3690.9,3690.8,0.538996]
[1733290227230,1.85175629,3690.9,3690.8,0.538996]
[1733290228834,1.85175629,3690.9,3690.4,3.20893]
[1733290229036,1.59801825,3690.9,3690.4,3.20893]
[1733290229349,1.59801825,3690.9,3690.4,0.4992]
[1733290229633,2.18549853,3690.8,3690.4,0.4992]
[1733290229810,1.93192371,3690.8,3690.4,0.4992]
[1733290230652,1.93192371,3690.8,3690.4,1.03237496]
[1733290230847,1.93192371,3690.8,3690.4,0.4992]
[1733290231486,8.72551884,3690.7,3690.4,0.4992]
[1733290231689,9.8462631,3690.7,3690.4,0.4992]
[1733290233566,0.829,3690.6,3690.4,0.4992]
[1733290233880,10.10451884,3690.5,3690.4,0.4992]
[1733290234478,10.35794995,3690.5,3690.4,0.4992]
[1733290234802,10.35794991,3690.5,3690.4,0.4992]
[1733290235007,11.50581933,3690.5,3690.4,0.4992]
[1733290235310,11.25238826,3690.5,3690.4,0.4992]
[1733290235665,11.50576389,3690.5,3690.4,0.4992]
[1733290236001,11.25238826,3690.5,3690.4,0.4992]
[1733290236403,11.50572235,3690.5,3690.4,0.4992]
[1733290238686,14.50572235,3690.5,3690.4,0.4992]
[1733290239005,14.25238826,3690.5,3690.4,0.4992]
[1733290239581,13.42338826,3690.5,3690.4,0.4992]
[1733290239782,13.63208826,3690.5,3690.4,0.4992]
[1733290243014,14.18208826,3690.5,3690.4,0.4992]
[1733290245093,11.18208826,3690.5,3690.4,0.4992]
[1733290248435,10.03421884,3690.5,3690.4,0.4992]
[1733290248633,9.27551884,3690.5,3690.4,0.4992]
[1733290251737,9.55876714,3690.5,3690.4,0.4992]
[1733290253511,10.36086714,3690.5,3690.4,0.4992]
[1733290254348,10.61472825,3690.5,3690.4,0.4992]
[1733290254652,11.53867182,3690.5,3690.4,0.4992]
[1733290254840,11.79253525,3690.5,3690.4,0.4992]
[1733290258215,11.79253525,3690.5,3690.4,3.4992]
[1733290259142,11.79263392,3690.5,3690.4,3.4992]
[1733290260036,11.50938562,3690.5,3690.4,3.4992]
[1733290260645,14.50938562,3690.5,3690.4,3.4992]
[1733290261150,15.67270412,3690.5,3690.4,3.4992]
[1733290261356,18.38235412,3690.5,3690.4,3.4992]
[1733290261529,15.67270412,3690.5,3690.4,3.4992]
[1733290261739,16.07905579,3690.5,3690.4,3.4992]
[1733290266773,16.07905579,3690.5,3690.0,0.4]
[1733290266774,3.0,3690.2,3690.0,0.4]
[1733290267060,6.17793227,3690.1,3690.0,0.4]
[1733290268263,6.17755768,3690.1,3690.0,0.4]
[1733290270738,11.40387652,3690.1,3690.0,0.4]
[1733290271757,11.40334696,3690.1,3690.0,0.4]
[1733290272073,12.68783005,3690.1,3690.0,0.4]
[1733290272625,11.52451155,3690.1,3690.0,0.4]
[1733290272827,8.88572846,3690.1,3690.0,0.4]
[1733290273027,8.47993792,3690.1,3690.0,0.4]
[1733290273260,8.22631884,3690.1,3690.0,0.4]
[1733290273660,3.0,3690.4,3690.0,0.4]
[1733290273850,0.25356486,3690.3,3690.0,0.4]
[1733290274023,0.25356486,3690.2,3690.0,0.4]
[1733290274225,3.0,3690.4,3690.0,0.4]
[1733290274457,3.0,3690.4,3690.0,3.11]
[1733290274458,0.25356484,3690.3,3690.0,3.11]
[1733290274660,0.25356484,3690.2,3690.0,3.11]
[1733290274965,3.0,3690.4,3690.0,3.11]
[1733290275164,0.25356376,3690.3,3690.0,3.11]
[1733290275400,0.25356376,3690.2,3690.0,3.11]
[1733290275543,0.28327214,3690.3,3690.0,3.11]
[1733290275745,0.25357401,3690.2,3690.0,0.4]
[1733290275951,0.28327214,3690.3,3690.0,0.4]
[1733290276130,0.25357414,3690.2,3690.0,0.4]
[1733290276331,0.25357414,3690.1,3690.0,0.4]
[1733290276543,3.25357414,3690.1,3690.0,0.4]
[1733290276769,3.80357414,3690.1,3690.0,0.4]
[1733290276956,4.9314625,3690.1,3690.0,0.4]
[1733290278332,3.80357414,3690.1,3690.0,0.4]
[1733290279071,3.8035903,3690.1,3690.0,0.4]
[1733290279756,9.02990914,3690.1,3690.0,0.4]
[1733290280331,8.47990914,3690.1,3690.0,0.4]
[1733290280531,9.02990914,3690.1,3690.0,0.4]
[1733290282491,8.47990914,3690.1,3690.0,0.4]
[1733290282637,3.2535903,3690.1,3690.0,0.4]
[1733290285536,8.47990914,3690.1,3690.0,0.4]
[1733290288775,0.6598771,3690.1,3690.0,0.4]
[1733290288987,0.2535903,3690.1,3690.0,0.4]
[1733290290739,5.84928759,3690.1,3690.0,0.4]
[1733290290985,2.44298121,3690.1,3690.0,0.4]
[1733290291683,10.66930005,3690.1,3690.0,0.4]
[1733290292397,14.54256855,3690.1,3690.0,0.4]
[1733290292558,14.54256855,3690.1,3688.8,3.46469]
[1733290292559,0.55,3689.8,3688.8,3.46469]
[1733290292758,0.55,3689.6,3688.8,3.46469]
[1733290292957,0.55,3689.4,3688.8,3.46469]
[1733290293276,6.03030462,3689.3,3689.2,0.5333543]
[1733290293478,5.22631884,3689.3,3689.2,0.5333543]
[1733290293647,5.22631884,3689.3,3689.2,5.48549223]
[1733290297686,5.22631884,3690.1,3689.7,2.71024]
[1733290297868,5.22631884,3690.1,3689.8,0.7814]
[1733290297869,0.25388631,3690.0,3689.8,0.7814]
[1733290298077,5.22631884,3690.1,3689.8,0.7814]
[1733290298379,0.25388935,3690.0,3689.4,2.71043]
[1733290298582,5.22631884,3690.1,3689.5,3.47668]
[1733290298780,0.25390861,3690.0,3689.5,0.7663]
[1733290298981,0.25390861,3689.9,3689.5,0.7663]
[1733290299186,5.22631884,3690.1,3689.5,3.47668]
[1733290299357,0.25392418,3690.0,3689.5,3.47668]
[1733290299554,0.25392788,3689.9,3689.5,3.47668]
[1733290300006,6.16528257,3690.1,3689.5,3.47668]
[1733290300165,0.25392989,3690.0,3689.5,3.47668]
[1733290300501,0.25392989,3689.9,3689.6,2.71031]
[1733290300805,0.28328487,3690.0,3689.5,0.7663]
[1733290300997,0.25394647,3689.9,3689.5,0.7663]
[1733290301158,0.28328487,3690.0,3689.5,3.47668]
[1733290301360,0.25394365,3689.9,3689.5,3.47668]
[1733290301560,0.28328487,3690.0,3689.5,3.47668]
[1733290301794,0.25396581,3689.9,3689.5,3.47668]
[1733290302003,0.28328487,3690.0,3689.5,0.7663]
[1733290302296,0.25396528,3689.9,3689.6,2.71031]
[1733290302498,0.28328487,3690.0,3689.6,2.71031]
[1733290302665,0.25397686,3689.9,3689.6,2.71031]
[1733290302867,0.28328487,3690.0,3689.6,2.71031]
[1733290303116,0.25397588,3689.9,3689.6,2.71031]
[1733290303268,0.28328487,3690.0,3689.6,2.71031]
[1733290303467,0.25397839,3689.9,3689.6,2.71031]
[1733290303667,0.25397839,3689.8,3689.5,0.7663]
[1733290303907,0.28328487,3690.0,3689.5,0.7663]
[1733290304071,0.25399321,3689.9,3689.5,0.7663]
[1733290304265,0.25399321,3689.8,3689.5,3.47668]
[1733290304584,0.28328487,3690.0,3689.5,3.47668]
[1733290304770,0.25399712,3689.9,3689.5,3.47668]
[1733290304983,0.25399712,3689.8,3689.5,3.47668]
[1733290305202,0.28328487,3690.0,3689.5,3.47668]
[1733290305203,0.28328487,3690.0,3689.5,0.7663]
[1733290305436,1.10495408,3689.9,3689.5,0.7663]
[1733290305562,0.25399371,3689.8,3689.5,0.7663]
[1733290305767,0.85096037,3689.9,3689.5,0.7663]
[1733290306105,0.2540131,3689.8,3689.5,0.7663]
[1733290306408,0.2540131,3689.8,3689.2,0.5333543]
[1733290306409,0.25401731,3689.7,3689.2,1.3227543]
[1733290306562,5.77631884,3689.8,3689.2,4.0333543]
[1733290306768,0.76730641,3689.7,3689.2,4.0333543]
[1733290307165,0.55,3689.5,3689.2,0.5333543]
[1733290307686,0.80403003,3689.4,3689.2,0.5333543]
[1733290308000,0.80403003,3689.3,3689.2,0.5333543]
[1733290309361,0.55,3689.3,3689.2,0.5333543]
[1733290309723,1.20629188,3689.3,3689.2,0.5333543]
[1733290310302,1.46020799,3689.3,3689.2,0.5333543]
[1733290310601,1.46020799,3689.3,3688.8,2.71089]
[1733290310760,0.25391611,3689.2,3688.8,2.71089]
[1733290310969,1.20629188,3689.3,3688.8,2.71089]
[1733290311265,0.25387965,3689.2,3688.9,0.52935798]
[1733290311467,1.20629188,3689.3,3688.8,2.71089]
[1733290311760,0.25385563,3689.2,3688.8,2.71089]
[1733290311972,1.20629188,3689.3,3688.8,2.71089]
[1733290312193,0.2538553,3689.2,3688.8,2.71089]
[1733290312400,0.25384688,3689.1,3688.8,0.53813848]
[1733290312597,0.55,3689.2,3688.8,0.53813848]
[1733290312935,0.55,3689.0,3688.8,0.53813848]
[1733290313211,0.80384613,3688.9,3688.8,0.53813848]
[1733290313810,0.80380406,3688.9,3688.8,0.53813848]
[1733290313991,1.60984093,3688.9,3688.8,0.53813848]
[1733290314163,2.77315943,3688.9,3688.8,0.53813848]
[1733290314360,3.17913703,3688.9,3688.8,0.53813848]
[1733290314601,11.40545587,3688.9,3688.8,0.53813848]
[1733290314770,14.11628587,3688.9,3688.8,0.53813848]
[1733290314966,14.90398587,3688.9,3688.8,0.53813848]
[1733290316560,14.90398587,3688.9,3687.8,0.7816]
[1733290316783,10.2290939,3688.8,3687.8,0.7816]
[1733290317109,0.55,3688.6,3687.8,0.7816]
[1733290317417,0.55,3688.4,3687.8,0.7816]
[1733290317942,0.55,3688.7,3687.8,0.7816]
[1733290318122,0.55,3688.5,3687.8,0.7816]
[1733290318626,0.55,3688.7,3687.8,0.7816]
[1733290318780,0.55,3688.5,3687.8,0.7816]
[1733290318983,0.55,3688.5,3688.3,0.53314667]
[1733290319216,0.7796,3688.4,3688.3,0.53314667]
[1733290319420,1.3296,3688.4,3688.3,0.53314667]
[1733290319623,6.80918587,3688.4,3688.3,0.53314667]
[1733290319915,6.80918587,3688.4,3686.9,2.71225]
[1733290319916,0.55,3688.3,3687.3,3.519]
[1733290320117,0.25326703,3688.2,3687.3,3.519]
[1733290320318,5.47958587,3688.1,3687.3,3.519]
[1733290320526,0.55,3687.9,3687.3,0.807]
[1733290320697,0.55,3687.9,3687.5,2.71179]
[1733290322542,0.8246,3687.8,3687.5,2.71179]
[1733290322690,0.8246,3687.8,3687.4,2.71191]
[1733290323315,0.8246,3687.8,3687.5,2.71186]
[1733290323835,0.8246,3687.8,3687.5,2.71185]
[1733290324132,0.55,3687.9,3687.7,2.71169]
[1733290325142,0.55,3687.9,3687.4,2.71186]
[1733290325458,0.55,3687.9,3687.3,3.8753285]
[1733290325742,5.22631884,3688.0,3687.9,2.71157]
[1733290327656,0.7894,3688.4,3687.4,2.70439448]
[1733290327657,0.55,3688.2,3687.4,2.70439448]
[1733290327992,0.55,3688.2,3687.4,1.9922185]
[1733290328147,0.55,3688.2,3688.0,2.71142]
[1733290329652,0.55,3688.2,3687.5,2.71186]
[1733290329884,0.55,3688.2,3687.6,0.8321]
[1733290330491,0.55,3688.2,3686.6,2.71251]
[1733290330492,0.8176,3687.4,3686.6,2.71251]
[1733290330638,0.8176,3687.4,3686.0,2.71296]
[1733290330639,1.7133185,3687.3,3686.0,3.04621313]
[1733290330838,0.55,3687.3,3686.6,2.71251]
[1733290333539,0.55,3687.3,3686.3,2.71268]
[1733290333739,5.22631884,3687.1,3686.3,2.71268]
[1733290333927,0.55,3687.0,3686.3,2.71268]
[1733290334133,0.55,3687.0,3686.0,0.33325313]
[1733290334333,5.77631884,3686.8,3686.1,0.53216642]
[1733290334854,5.77631884,3686.8,3686.0,2.71296]
[1733290336363,5.77631884,3686.8,3686.1,2.71288]
[1733290337115,5.77631884,3686.8,3685.9,0.7596]
[1733290337116,1.3657,3686.6,3685.5,0.8087]
[1733290337269,0.55,3686.4,3685.8,2.7131]
[1733290339097,0.55,3686.4,3685.7,2.71315]
[1733290339299,0.55,3686.4,3685.5,1.35769788]
[1733290339497,0.55,3686.4,3685.8,2.71311]
[1733290339705,0.55,3686.4,3685.5,1.35769788]
[1733290339911,0.55,3686.4,3686.0,2.71294]
[1733290340213,5.77631884,3686.4,3685.5,1.35769788]
[1733290340370,5.77631884,3686.4,3685.7,2.71312]
[1733290340819,5.77631884,3686.4,3685.5,1.35769788]
[1733290341189,5.77631884,3686.4,3685.9,2.71301]
[1733290341904,5.77631884,3686.4,3685.6,2.71326]
[1733290342079,5.77631884,3686.4,3686.0,2.71295]
[1733290342276,5.77631884,3686.4,3686.1,0.7848]
[1733290342277,5.22631884,3686.4,3686.1,0.7848]
[1733290342524,3.795,3687.0,3686.1,0.7848]
[1733290342525,0.795,3687.0,3686.8,2.71237]
[1733290342724,8.22631884,3687.7,3686.9,2.71229]
[1733290342725,1.45193927,3687.6,3686.9,2.71229]
[1733290342878,5.22631884,3687.4,3686.7,0.7542]
[1733290343087,0.25266895,3687.3,3686.9,2.71225]
[1733290343402,5.22631884,3687.4,3686.9,2.71225]
[1733290343600,5.82845072,3687.4,3686.9,2.71225]
[1733290344203,0.55,3687.3,3686.9,2.71225]
[1733290346285,0.55,3687.3,3686.7,0.7542]
[1733290346490,0.55,3687.3,3687.2,2.71208]
[1733290346740,5.22631884,3687.4,3687.2,2.71208]
[1733290346942,5.22631884,3687.4,3686.7,0.7542]
[1733290347141,5.22631884,3687.4,3686.7,3.46659]
[1733290347295,5.22631884,3687.4,3687.2,2.71205]
[1733290348633,0.55,3687.5,3687.3,2.71201]
[1733290349239,0.55,3687.5,3687.0,2.71218]
[1733290349410,0.55,3687.5,3686.7,1.15511253]
[1733290349606,0.55,3687.5,3687.0,2.71217]
[1733290349929,0.55,3687.5,3687.1,2.71214]
[1733290352832,0.55,3687.5,3687.0,2.71222]
[1733290355128,0.55,3687.3,3686.9,2.71229]
[1733290356903,0.55,3687.3,3686.4,1.30873525]
[1733290357238,0.8034059,3687.3,3686.4,1.30873525]
[1733290357423,0.8034059,3687.3,3686.6,2.71246]
[1733290357746,6.80562537,3687.3,3686.6,2.71246]
[1733290357948,6.55221947,3687.3,3686.6,2.71246]
[1733290359636,6.55221947,3687.3,3686.7,2.71244]
[1733290360143,6.55221947,3687.3,3686.8,2.71231]
[1733290360345,6.55221947,3687.3,3686.5,2.7126]
[1733290360513,5.77631884,3687.3,3686.7,1.16633989]
[1733290360714,1.07369666,3687.7,3686.8,0.7629]
[1733290361041,0.25372393,3687.6,3686.8,0.7629]
[1733290361205,1.07369666,3687.7,3686.8,0.7629]
[1733290361400,0.25370696,3687.6,3687.3,2.71196]
[1733290361746,1.07369666,3687.7,3687.4,2.71193]
[1733290361965,0.55,3687.6,3687.4,2.71193]
[1733290362332,0.55,3687.6,3686.8,0.7629]
[1733290362544,0.55,3687.6,3687.2,2.71208]
[1733290363472,0.55,3687.6,3686.8,0.7629]
[1733290363473,0.71236967,3687.6,3687.0,2.71222]
[1733290363654,0.7902,3687.3,3686.6,0.7629]
[1733290363847,0.55,3687.2,3686.8,2.71231]
[1733290365330,0.55,3687.4,3686.8,2.71231]
[1733290366881,5.77631884,3687.4,3686.8,2.71231]
[1733290367037,5.77631884,3687.4,3686.6,0.7629]
[1733290367237,5.77631884,3687.4,3686.9,2.7123]
[1733290367434,5.77631884,3687.4,3687.0,2.71222]
[1733290367435,6.44964769,3687.4,3687.0,2.71222]
[1733290367676,6.44964769,3687.4,3687.1,2.71213]
[1733290367837,6.44964769,3687.4,3686.6,3.47538]
[1733290367838,5.77631884,3687.4,3687.2,2.71205]
[1733290368435,5.77631884,3687.4,3686.6,0.7629]
[1733290368660,5.77631884,3687.4,3687.2,2.71207]
[1733290369639,0.55,3687.6,3687.2,2.71207]
[1733290369838,1.20709188,3687.6,3686.6,0.7629]
[1733290370035,0.55,3687.6,3687.3,2.712]
[1733290370238,0.55,3687.4,3687.3,2.712]
[1733290370728,0.55,3687.6,3687.3,2.712]
[1733290370961,0.55,3687.4,3687.3,2.712]
[1733290371166,0.55,3687.6,3687.3,2.712]
[1733290371373,0.55,3687.4,3687.3,2.712]
[1733290371547,1.20709188,3687.6,3687.3,2.712]
[1733290371744,0.55,3687.4,3687.3,2.712]
[1733290372233,0.55,3687.3,3687.1,2.71215]
[1733290372970,0.55,3687.5,3687.2,2.71208]
[1733290373169,0.55,3687.3,3687.2,2.71208]
[1733290373860,0.55,3687.5,3687.2,2.71208]
[1733290374056,0.55,3687.3,3687.2,2.71208]
[1733290374757,0.55,3687.5,3687.2,2.71208]
[1733290374962,0.55,3687.3,3687.2,2.71208]
[1733290375166,0.55,3687.5,3686.6,0.7629]
[1733290375392,0.55,3687.3,3686.6,0.7629]
[1733290375668,1.3422,3687.3,3687.0,2.71222]
[1733290375876,1.54212919,3687.3,3687.0,2.71222]
[1733290378232,1.3422,3687.3,3687.0,2.71222]
[1733290379547,0.28308466,3687.5,3686.7,5.29661461]
[1733290379863,0.28308466,3687.5,3687.4,3.52363]
[1733290380185,5.98501884,3688.4,3687.9,2.71149]
[1733290380345,0.28125851,3688.1,3688.0,2.71149]
[1733290381238,2.58416461,3689.2,3688.1,2.71136]
[1733290381239,0.7587,3688.7,3688.1,2.71136]
[1733290381440,0.25397201,3688.6,3688.1,2.71135]
[1733290381640,0.253977,3688.5,3688.1,2.71135]
[1733290381841,0.253977,3688.4,3688.2,2.71134]
[1733290382084,0.7587,3688.7,3688.2,2.71134]
[1733290382290,0.25383796,3688.6,3688.2,2.71134]
[1733290382491,0.55,3688.4,3688.2,2.71134]
[1733290382720,0.55,3688.6,3688.0,2.71148]
[1733290382984,0.55,3688.4,3688.1,2.71142]
[1733290383153,0.55,3688.4,3688.2,2.71134]
[1733290383353,0.80376126,3688.6,3688.2,2.71134]
[1733290383564,0.55,3688.4,3688.0,2.71149]
[1733290384078,0.55,3688.5,3688.1,2.71141]
[1733290384452,0.55,3688.5,3687.8,0.7778]
[1733290384690,0.15624613,3688.6,3687.8,0.7778]
[1733290384691,0.55,3688.6,3688.1,2.71137]
[1733290385053,0.55,3688.4,3688.1,2.71137]
[1733290385253,0.55,3688.6,3688.1,2.71137]
[1733290385482,0.55,3688.6,3688.2,2.71131]
[1733290385787,0.55,3688.6,3687.8,0.7778]
[1733290385988,0.55,3688.6,3687.8,1.1816827]
[1733290386162,0.80357555,3688.6,3688.3,2.71126]
[1733290386371,0.80356548,3688.9,3688.6,2.71098]
[1733290386695,0.55,3688.7,3688.3,2.7112]
[1733290386995,0.55,3688.7,3688.1,0.7951]
[1733290387288,0.80355951,3688.9,3688.3,2.71125]
[1733290387453,0.98325784,3688.8,3688.3,2.71125]
[1733290387854,0.55,3688.7,3688.3,2.71125]
[1733290388166,0.55,3688.9,3688.3,2.71127]
[1733290388557,0.55,3688.9,3688.6,2.71098]
[1733290389258,6.01701884,3689.2,3688.6,2.71098]
[1733290389471,1.45170188,3689.1,3688.6,2.71098]
[1733290389798,1.45170188,3689.1,3688.2,0.55138769]
[1733290390094,0.55,3689.1,3688.7,2.71095]
[1733290392775,0.55,3689.1,3688.2,3.26266769]
[1733290392776,0.55,3689.1,3688.5,2.7111]
[1733290393268,0.55,3689.1,3688.2,0.55138769]
[1733290393269,0.55,3688.9,3688.2,0.55138769]
[1733290393792,0.8085,3689.0,3688.2,0.55138769]
[1733290393793,0.55,3688.7,3688.2,0.55138769]
[1733290393993,0.8085,3688.6,3688.2,0.55138769]
[1733290394504,0.55,3688.5,3688.2,0.55138769]
[1733290395795,1.20848188,3688.5,3688.2,0.55138769]
[1733290396310,5.77631884,3688.3,3688.2,0.55138769]
[1733290398378,5.77631884,3688.2,3687.4,2.7119]
[1733290398705,5.77631884,3688.2,3687.3,0.805]
[1733290399014,5.77631884,3688.2,3687.7,0.54343991]
[1733290400623,5.77631884,3688.2,3687.3,0.805]
[1733290400624,6.50261891,3688.2,3687.3,0.805]
[1733290401497,6.50261891,3688.2,3687.6,0.53216521]
[1733290401702,0.817,3688.1,3687.6,0.53216521]
[1733290401895,0.55,3688.0,3687.6,0.53216521]
[1733290402507,0.55,3688.0,3687.3,2.712]
[1733290402719,5.77631884,3688.0,3687.3,2.712]
[1733290402908,1.28196189,3688.0,3687.1,3.52775]
[1733290403151,1.28196189,3688.0,3687.2,3.2550813]
[1733290403315,0.55,3687.8,3687.2,2.71206]
[1733290404608,0.83275286,3687.8,3687.2,2.71206]
[1733290405918,0.83275286,3687.8,3687.1,3.25886237]
[1733290406115,0.83275286,3687.8,3687.2,2.71207]
[1733290406635,0.83275286,3687.8,3687.4,2.71191]
[1733290407335,0.83275286,3687.8,3687.1,0.54671237]
[1733290407530,0.83275286,3687.8,3687.2,2.71201]
[1733290407936,0.83275286,3687.8,3687.1,0.86689272]
[1733290408138,0.83275286,3687.8,3687.4,2.71186]
[1733290409947,0.83275286,3687.8,3687.1,0.54671237]
[1733290409948,0.83275286,3687.8,3687.2,2.71208]
[1733290410127,0.83275286,3687.8,3687.3,2.712]
[1733290411616,0.55,3687.6,3687.1,3.25886237]
[1733290412847,0.55,3687.6,3687.2,2.71206]
[1733290414004,0.55,3687.6,3687.1,0.54671237]
[1733290414509,0.55,3687.6,3687.1,3.25886237]
[1733290416418,0.55,3687.4,3687.1,0.54671237]
[1733290417246,0.55,3687.4,3687.1,3.25886237]
[1733290419134,0.55,3687.4,3687.1,0.54671237]
[1733290419750,0.55,3687.4,3687.3,2.71201]
[1733290419935,0.55,3687.6,3687.3,2.71201]
[1733290420857,3.7533,3688.1,3687.5,0.7663]
[1733290421067,0.7533,3687.8,3686.5,0.38273415]
[1733290421343,0.7533,3687.8,3687.2,2.71206]
[1733290422477,0.55,3687.7,3687.2,2.71206]
[1733290423131,0.55,3687.7,3686.9,0.53037294]
[1733290423337,0.55,3687.5,3687.0,2.71222]
[1733290425078,0.55,3687.5,3686.9,0.53037294]
[1733290425375,0.55,3687.5,3687.1,2.71214]
[1733290426472,0.55,3687.5,3686.9,0.53037294]
[1733290426868,0.55,3687.5,3687.4,2.71193]
[1733290427464,0.55,3687.5,3687.2,2.71207]
[1733290427787,0.55,3687.5,3687.3,2.712]
[1733290428885,0.28178783,3687.6,3687.5,2.71186]
[1733290429095,0.28178783,3687.6,3687.5,4.61334763]
[1733290429271,5.22631884,3687.8,3687.5,0.73539797]
[1733290429484,5.22631884,3687.8,3687.7,2.71171]
[1733290429849,0.7776,3688.2,3687.8,2.71158]
[1733290430048,0.7776,3688.2,3687.4,2.71193]
[1733290430290,0.7776,3688.2,3687.9,2.71155]
[1733290430672,0.55,3688.1,3687.9,2.71155]
[1733290431697,0.55,3688.2,3688.0,2.71147]
[1733290432207,3.0,3688.3,3688.0,2.71147]
[1733290432208,0.55,3688.4,3688.0,2.71147]
[1733290432367,0.55,3688.4,3687.8,0.7672]
[1733290432569,0.7749,3688.5,3687.9,1.16608966]
[1733290432892,5.22631884,3688.7,3688.1,2.71142]
[1733290433094,0.7508,3688.8,3688.3,0.8162]
[1733290433297,0.7508,3688.8,3688.4,2.71119]
[1733290434161,0.7508,3688.8,3688.1,0.55371923]
[1733290434162,0.55,3688.7,3688.2,2.71132]
[1733290435267,0.55,3688.7,3688.1,0.55371923]
[1733290435599,0.55,3688.7,3688.1,3.26509923]
[1733290437965,0.55,3688.7,3688.2,2.71134]
[1733290438521,0.55,3688.7,3688.3,2.71125]
[1733290438880,5.77631884,3688.7,3688.3,2.71125]
[1733290441007,5.77631884,3688.7,3688.1,3.26513923]
[1733290442574,0.55,3688.5,3688.1,3.26513923]
[1733290443229,0.55,3688.5,3688.1,0.55371923]
[1733290443410,0.55,3688.5,3688.1,3.26512923]
[1733290443720,0.55,3688.5,3688.1,0.55371923]
[1733290444688,0.78,3688.6,3688.4,2.7112]
[1733290444890,0.55,3688.5,3688.1,3.26507923]
[1733290445493,0.55,3688.5,3686.7,2.7124]
[1733290445494,0.7811,3687.9,3686.7,2.7124]
[1733290445694,0.55,3687.6,3686.5,2.71259]
[1733290445879,0.55,3687.4,3686.6,2.71252]
[1733290447517,0.55,3687.4,3686.7,2.71244]
[1733290447681,0.7773,3687.5,3686.8,2.71235]
[1733290447879,0.55,3687.4,3686.8,2.71235]
[1733290448081,0.55,3687.4,3687.1,2.7121]
[1733290448284,0.55,3687.4,3686.9,0.271235]
[1733290448285,0.7771,3687.8,3687.4,2.71193]
[1733290448491,0.7771,3688.2,3687.6,2.71178]
[1733290448693,0.7771,3688.2,3687.6,2.71175]
[1733290448882,0.7771,3688.2,3687.2,0.8283]
[1733290449115,0.7771,3688.2,3687.6,2.71175]
[1733290449630,0.7771,3688.2,3687.7,2.71169]
[1733290449924,5.22631884,3688.4,3687.5,2.58407186]
[1733290450124,0.7566,3688.5,3687.5,2.58407186]
[1733290450334,5.22631884,3688.7,3688.2,2.71134]
[1733290450748,5.22631884,3688.7,3687.9,0.7758]
[1733290450749,5.22631884,3688.7,3688.3,2.71127]
[1733290451086,5.22631884,3688.7,3688.3,3.25470989]
[1733290451282,5.22631884,3688.7,3688.4,2.71118]
[1733290451626,5.22631884,3688.7,3687.9,0.7758]
[1733290451979,5.22631884,3688.7,3688.1,3.25714435]
[1733290452183,5.22631884,3688.5,3687.2,0.7669]
[1733290452416,5.22631884,3688.5,3687.7,2.71169]
[1733290452793,0.55,3688.4,3687.7,2.71169]
[1733290452999,0.55,3688.2,3687.7,2.71169]
[1733290453519,0.55,3688.2,3687.2,0.7669]
[1733290453835,0.55,3688.0,3687.4,2.71191]
[1733290454018,0.55,3688.0,3687.5,2.71185]
[1733290454689,0.55,3688.0,3687.9,0.55478644]
[1733290455588,2.06973807,3688.0,3687.9,0.55478644]
[1733290455798,0.55,3687.8,3686.2,3.33807186]
[1733290455999,0.55,3687.6,3687.1,2.71214]
[1733290456734,5.77631884,3687.6,3686.3,2.71274]
[1733290456927,0.55,3687.8,3687.0,0.55128089]
[1733290457127,0.55,3687.8,3687.2,2.71204]
[1733290458331,0.55,3687.8,3687.0,0.55128089]
[1733290458332,0.55,3687.4,3685.9,3.7778]
[1733290458537,0.55,3687.2,3686.5,2.71259]
[1733290458740,0.55,3687.0,3686.4,0.5457442]
[1733290458946,5.77631884,3686.8,3686.2,2.71279]
[1733290459099,5.77631884,3686.8,3685.5,3.33597186]
[1733290459100,5.77631884,3686.8,3686.3,2.71273]
[1733290459511,5.77631884,3686.8,3686.3,3.26310454]
[1733290459715,0.55,3686.8,3686.4,2.71267]
[1733290460548,0.55,3686.8,3686.5,2.71259]
[1733290463337,0.55,3686.8,3686.3,0.55037454]
[1733290463636,1.3451,3687.4,3686.3,0.55037454]
[1733290463838,1.3451,3687.4,3686.5,2.7126]
[1733290464043,1.3451,3687.4,3686.4,0.40150845]
[1733290464044,1.3451,3687.4,3686.7,2.71243]
[1733290464239,1.3451,3687.4,3686.8,2.71237]
[1733290464448,0.55,3687.2,3686.5,2.71252]
[1733290464759,0.55,3687.2,3686.3,0.55037454]
[1733290464958,0.55,3687.2,3686.6,2.71252]
[1733290465267,0.55,3687.2,3686.7,2.71244]
[1733290465467,0.55,3687.2,3686.9,2.71228]
[1733290466125,0.55,3687.2,3686.9,2.71225]
[1733290469435,0.55,3687.0,3686.6,2.71252]
[1733290470334,0.55,3687.0,3686.3,0.55037454]
[1733290470648,0.55,3687.0,3686.7,2.7124]
[1733290470969,0.55,3687.0,3686.8,2.71237]
[1733290471735,0.55,3687.0,3686.5,2.71255]
[1733290473179,0.55,3687.0,3686.6,2.7125]
[1733290473471,0.55,3687.0,3686.3,0.55037454]
[1733290473662,0.55,3687.0,3686.7,2.71245]
[1733290473830,0.776,3686.9,3686.3,0.55037454]
[1733290474888,0.776,3686.9,3686.4,2.7126]
[1733290475182,0.776,3686.9,3686.3,0.55037454]
[1733290475753,0.776,3686.9,3686.5,2.71258]
[1733290476382,0.55,3686.8,3686.3,0.55037454]
[1733290476585,1.3072,3686.8,3686.3,0.55037454]
[1733290477849,6.53351884,3686.8,3685.9,2.71296]
[1733290478681,6.53351884,3686.8,3685.9,3.24263579]
[1733290478682,0.55,3686.6,3685.9,3.24263579]
[1733290478843,0.55,3686.6,3686.0,2.71295]
[1733290479048,0.7835,3686.4,3685.0,3.0]